[Event "*** Titled Tuesday 3|2 Blitz"]
[Site "Chess.com"]
[Date "2015.12.01"]
[Round "7"]
[White "RitvarsReimanis"]
[Black "salomez"]
[Result "1-0"]
[WhiteElo "2296"]
[BlackElo "2087"]
[TimeControl "180+2"]
[EndTime "12:27:12 PST"]
[Termination "RitvarsReimanis won by resignation"]

1. d4 {[%clk 0:03:01.9]} 1... Nf6 {[%clk 0:03:00.5]} 2. c4 {[%clk 0:03:02.6]}
2... g6 {[%clk 0:03:01.6]} 3. Nc3 {[%clk 0:03:04.1]} 3... d5 {[%clk 0:03:02.9]}
4. cxd5 {[%clk 0:03:05.2]} 4... Nxd5 {[%clk 0:03:04.1]} 5. e4 {[%clk 0:03:07.1]}
5... Nxc3 {[%clk 0:03:05.1]} 6. bxc3 {[%clk 0:03:09]} 6... Bg7 {[%clk
0:03:06.5]} 7. Be3 {[%clk 0:03:10.9]} 7... O-O {[%clk 0:03:05.4]} 8. Nf3 {[%clk
0:03:10.2]} 8... c5 {[%clk 0:03:06.5]} 9. Bc4 {[%clk 0:03:10.7]} 9... cxd4
{[%clk 0:03:05.4]} 10. cxd4 {[%clk 0:03:11.6]} 10... Nc6 {[%clk 0:03:06.5]} 11.
h3 {[%clk 0:03:09.9]} 11... Qa5+ {[%clk 0:02:42.8]} 12. Kf1 {[%clk 0:03:10.7]}
12... b5 {[%clk 0:02:16.2]} 13. Bd5 {[%clk 0:03:07.2]} 13... Bd7 {[%clk
0:02:14.8]} 14. Rc1 {[%clk 0:02:59.5]} 14... Rac8 {[%clk 0:02:14.9]} 15. Bb3
{[%clk 0:02:41.6]} 15... e5 {[%clk 0:02:05.5]} 16. dxe5 {[%clk 0:02:18.6]} 16...
Nxe5 {[%clk 0:02:04.3]} 17. Rxc8 {[%clk 0:02:18.3]} 17... Nxf3 {[%clk 0:01:55]}
18. Rxf8+ {[%clk 0:02:15.8]} 18... Bxf8 {[%clk 0:01:51.6]} 19. Qxf3 {[%clk
0:02:11.8]} 19... Be8 {[%clk 0:01:44.6]} 20. g4 {[%clk 0:02:06.6]} 20... Qc3
{[%clk 0:01:42.9]} 21. Kg2 {[%clk 0:02:06.7]} 21... a5 {[%clk 0:01:40.4]} 22.
Rc1 {[%clk 0:02:07.2]} 22... Qg7 {[%clk 0:01:30.3]} 23. Rc7 {[%clk 0:02:01.9]}
23... a4 {[%clk 0:01:29.4]} 24. Bd5 {[%clk 0:02:03.1]} 24... b4 {[%clk
0:01:24.5]} 25. Bg5 {[%clk 0:02:01.4]} 25... Bd6 {[%clk 0:01:09.1]} 26. Rc8
{[%clk 0:01:55.6]} 1-0

[Event "*** Titled Tuesday 3|2 Blitz"]
[Site "Chess.com"]
[Date "2015.12.01"]
[Round "7"]
[White "darsen_sanzhaev"]
[Black "BellJackson95"]
[Result "0-1"]
[WhiteElo "2228"]
[BlackElo "2171"]
[TimeControl "180+2"]
[EndTime "12:27:48 PST"]
[Termination "BellJackson95 won by resignation"]

1. d4 {[%clk 0:03:01.9]} 1... Nf6 {[%clk 0:02:59.5]} 2. c4 {[%clk 0:03:02.7]}
2... c5 {[%clk 0:02:59.7]} 3. d5 {[%clk 0:03:03.7]} 3... e6 {[%clk 0:03:00.9]}
4. Nc3 {[%clk 0:03:04.7]} 4... exd5 {[%clk 0:03:02.6]} 5. cxd5 {[%clk
0:03:06.6]} 5... d6 {[%clk 0:03:02.5]} 6. Bf4 {[%clk 0:03:08.1]} 6... a6 {[%clk
0:02:59.8]} 7. Nf3 {[%clk 0:03:00.4]} 7... b5 {[%clk 0:02:54.2]} 8. a4 {[%clk
0:03:01.4]} 8... b4 {[%clk 0:02:53.5]} 9. Nb1 {[%clk 0:03:02.7]} 9... Bb7 {[%clk
0:02:38.4]} 10. Bg5 {[%clk 0:02:46.3]} 10... Be7 {[%clk 0:02:35.9]} 11. Bxf6
{[%clk 0:02:47.3]} 11... Bxf6 {[%clk 0:02:37.8]} 12. Ra2 {[%clk 0:02:44]} 12...
c4 {[%clk 0:02:19.2]} 13. b3 {[%clk 0:02:34.8]} 13... c3 {[%clk 0:02:13.4]} 14.
e4 {[%clk 0:02:30.6]} 14... O-O {[%clk 0:02:08.2]} 15. Bd3 {[%clk 0:02:08.7]}
15... Nd7 {[%clk 0:02:03.5]} 16. O-O {[%clk 0:02:10.1]} 16... Nc5 {[%clk
0:02:03]} 17. Re1 {[%clk 0:01:56.4]} 17... a5 {[%clk 0:02:03.5]} 18. Bc4 {[%clk
0:01:52.4]} 18... Re8 {[%clk 0:02:00.4]} 19. Rae2 {[%clk 0:01:50.3]} 19... Qb6
{[%clk 0:01:54.6]} 20. Bb5 {[%clk 0:01:22.7]} 20... Ba6 {[%clk 0:01:46.6]} 21.
Bxa6 {[%clk 0:01:13.2]} 21... Qxa6 {[%clk 0:01:45.1]} 22. g4 {[%clk 0:00:57.9]}
22... h6 {[%clk 0:01:39.9]} 23. Kh1 {[%clk 0:00:52.9]} 23... Nd3 {[%clk
0:01:35.1]} 24. Rf1 {[%clk 0:00:49.3]} 24... Nf4 {[%clk 0:01:27.6]} 25. Re3
{[%clk 0:00:48]} 25... c2 {[%clk 0:01:20.5]} 0-1

[Event "*** Titled Tuesday 3|2 Blitz"]
[Site "Chess.com"]
[Date "2015.12.01"]
[Round "7"]
[White "chessdude"]
[Black "kharposh"]
[Result "1-0"]
[WhiteElo "2272"]
[BlackElo "2090"]
[TimeControl "180+2"]
[EndTime "12:28:34 PST"]
[Termination "chessdude won by resignation"]

1. e4 {[%clk 0:03:01.9]} 1... e5 {[%clk 0:02:59.6]} 2. Nf3 {[%clk 0:03:02.1]}
2... Nc6 {[%clk 0:03:00.5]} 3. Bb5 {[%clk 0:03:02.5]} 3... Nf6 {[%clk
0:03:01.3]} 4. d3 {[%clk 0:02:57.8]} 4... Bc5 {[%clk 0:02:57.5]} 5. O-O {[%clk
0:02:58]} 5... d6 {[%clk 0:02:58.1]} 6. c3 {[%clk 0:02:58.8]} 6... Bb6 {[%clk
0:02:53.7]} 7. h3 {[%clk 0:02:59.2]} 7... O-O {[%clk 0:02:49.1]} 8. Nbd2 {[%clk
0:02:57.6]} 8... Ne7 {[%clk 0:02:45.5]} 9. Ba4 {[%clk 0:02:57.7]} 9... Ng6
{[%clk 0:02:45.9]} 10. Re1 {[%clk 0:02:53.2]} 10... Nf4 {[%clk 0:02:46.4]} 11.
d4 {[%clk 0:02:48.6]} 11... Nd3 {[%clk 0:02:40.5]} 12. Re2 {[%clk 0:02:43.7]}
12... Nh5 {[%clk 0:02:35.7]} 13. Nf1 {[%clk 0:02:37.6]} 13... Nxc1 {[%clk
0:02:35.1]} 14. Rxc1 {[%clk 0:02:35.8]} 14... Nf4 {[%clk 0:02:34.3]} 15. Re1
{[%clk 0:02:33]} 15... Qf6 {[%clk 0:02:23.5]} 16. Ng3 {[%clk 0:02:27.9]} 16...
Qg6 {[%clk 0:02:15.5]} 17. Bc2 {[%clk 0:01:51.5]} 17... Be6 {[%clk 0:02:08.2]}
18. Bb1 {[%clk 0:01:49.2]} 18... Rad8 {[%clk 0:02:03.3]} 19. Qd2 {[%clk
0:01:37.6]} 19... f6 {[%clk 0:01:57.1]} 20. Rcd1 {[%clk 0:01:36.3]} 20... Kh8
{[%clk 0:01:56.5]} 21. Kh2 {[%clk 0:01:33.3]} 21... c6 {[%clk 0:01:48.2]} 22.
Nh4 {[%clk 0:01:33.3]} 22... Qf7 {[%clk 0:01:40.9]} 23. Ngf5 {[%clk 0:01:31.2]}
23... g6 {[%clk 0:01:38.9]} 24. Ne3 {[%clk 0:01:27]} 24... Qg7 {[%clk
0:01:33.5]} 25. g3 {[%clk 0:01:22.4]} 25... Nxh3 {[%clk 0:01:32.2]} 26. Nef5
{[%clk 0:01:14.9]} 26... gxf5 {[%clk 0:01:28.2]} 27. exf5 {[%clk 0:01:14.6]}
27... Ng5 {[%clk 0:01:13]} 28. fxe6 {[%clk 0:01:14.4]} 28... Qh6 {[%clk
0:01:13.5]} 29. Kg2 {[%clk 0:01:06.6]} 29... Nxe6 {[%clk 0:01:03.4]} 30. Qxh6
{[%clk 0:01:04.2]} 1-0

[Event "*** Titled Tuesday 3|2 Blitz"]
[Site "Chess.com"]
[Date "2015.12.01"]
[Round "7"]
[White "Saitama_Hero"]
[Black "NguyenDucHoa"]
[Result "0-1"]
[WhiteElo "2132"]
[BlackElo "2361"]
[TimeControl "180+2"]
[EndTime "12:28:48 PST"]
[Termination "NguyenDucHoa won by resignation"]

1. d4 {[%clk 0:03:01.9]} 1... Nf6 {[%clk 0:02:59.4]} 2. c4 {[%clk 0:03:03.5]}
2... g6 {[%clk 0:03:00.1]} 3. Nc3 {[%clk 0:03:04.7]} 3... d5 {[%clk 0:03:00.8]}
4. cxd5 {[%clk 0:03:06.6]} 4... Nxd5 {[%clk 0:03:01.1]} 5. Bd2 {[%clk
0:03:08.2]} 5... Bg7 {[%clk 0:03:00.3]} 6. e4 {[%clk 0:03:09.7]} 6... Nb6 {[%clk
0:03:01.5]} 7. Be3 {[%clk 0:02:58.1]} 7... O-O {[%clk 0:03:00.5]} 8. Qd2 {[%clk
0:02:50.6]} 8... Nc6 {[%clk 0:02:51.6]} 9. Nf3 {[%clk 0:02:46.8]} 9... Bg4
{[%clk 0:02:50.5]} 10. d5 {[%clk 0:02:47]} 10... Bxf3 {[%clk 0:02:47.8]} 11.
gxf3 {[%clk 0:02:46.5]} 11... Ne5 {[%clk 0:02:47.7]} 12. Qe2 {[%clk 0:02:38.8]}
12... Nbc4 {[%clk 0:02:41]} 13. Bc1 {[%clk 0:02:20.5]} 13... Nd6 {[%clk
0:02:19.4]} 14. f4 {[%clk 0:02:11.3]} 14... Nd7 {[%clk 0:02:18.5]} 15. Bg2
{[%clk 0:01:56.6]} 15... e5 {[%clk 0:02:12.8]} 16. dxe6 {[%clk 0:01:34.9]} 16...
fxe6 {[%clk 0:02:11.9]} 17. e5 {[%clk 0:01:36.8]} 17... Nf5 {[%clk 0:02:05.8]}
18. Qc4 {[%clk 0:01:15.6]} 18... Kh8 {[%clk 0:01:54.7]} 19. Bxb7 {[%clk
0:01:09.8]} 19... Rb8 {[%clk 0:01:52]} 20. Be4 {[%clk 0:00:55.2]} 20... Qh4
{[%clk 0:01:47.2]} 21. Qxc7 {[%clk 0:00:41.5]} 21... Nxe5 {[%clk 0:01:28.5]} 22.
fxe5 {[%clk 0:00:32.7]} 22... Rbc8 {[%clk 0:01:10.2]} 23. Qxa7 {[%clk
0:00:27.4]} 23... Rxc3 {[%clk 0:01:10.2]} 24. bxc3 {[%clk 0:00:22.3]} 24...
Qxe4+ {[%clk 0:01:09.9]} 25. Be3 {[%clk 0:00:19]} 25... Qxh1+ {[%clk 0:01:08.8]}
26. Ke2 {[%clk 0:00:18.8]} 26... Qxa1 {[%clk 0:01:09.3]} 0-1

[Event "*** Titled Tuesday 3|2 Blitz"]
[Site "Chess.com"]
[Date "2015.12.01"]
[Round "7"]
[White "BIG_Pirate"]
[Black "KnightSeeSix"]
[Result "1-0"]
[WhiteElo "2306"]
[BlackElo "2167"]
[TimeControl "180+2"]
[EndTime "12:29:01 PST"]
[Termination "BIG_Pirate won by resignation"]

1. Nf3 {[%clk 0:03:01.9]} 1... Nf6 {[%clk 0:02:55.3]} 2. c4 {[%clk 0:02:58.3]}
2... c5 {[%clk 0:02:48.2]} 3. Nc3 {[%clk 0:02:59.4]} 3... Nc6 {[%clk 0:02:48.6]}
4. g3 {[%clk 0:03:00.7]} 4... g6 {[%clk 0:02:41.2]} 5. Bg2 {[%clk 0:03:01.9]}
5... Bg7 {[%clk 0:02:41.6]} 6. O-O {[%clk 0:03:03.4]} 6... O-O {[%clk
0:02:40.9]} 7. a3 {[%clk 0:03:04.9]} 7... e5 {[%clk 0:02:40.4]} 8. d3 {[%clk
0:03:05.3]} 8... d6 {[%clk 0:02:36.2]} 9. Rb1 {[%clk 0:03:02]} 9... a5 {[%clk
0:02:34.4]} 10. Ne1 {[%clk 0:03:02]} 10... Bd7 {[%clk 0:02:32.2]} 11. Nc2 {[%clk
0:03:02.6]} 11... h6 {[%clk 0:02:24.4]} 12. b4 {[%clk 0:03:02.9]} 12... axb4
{[%clk 0:02:25]} 13. axb4 {[%clk 0:03:04.8]} 13... cxb4 {[%clk 0:01:48]} 14.
Nxb4 {[%clk 0:03:05.2]} 14... Nxb4 {[%clk 0:01:27.7]} 15. Rxb4 {[%clk
0:03:07.1]} 15... Bc6 {[%clk 0:01:28.9]} 16. Qb3 {[%clk 0:02:49.3]} 16... Nd7
{[%clk 0:01:18]} 17. Be3 {[%clk 0:02:41.8]} 17... Re8 {[%clk 0:01:08.5]} 18. Nd5
{[%clk 0:02:17.7]} 18... Nc5 {[%clk 0:00:59.3]} 19. Qb1 {[%clk 0:02:16.5]} 19...
Qa5 {[%clk 0:00:45.5]} 20. Nb6 {[%clk 0:01:58.3]} 20... Ra6 {[%clk 0:00:41.2]}
21. Nd5 {[%clk 0:01:10.1]} 21... e4 {[%clk 0:00:40.8]} 22. d4 {[%clk 0:01:06]}
22... Ne6 {[%clk 0:00:27.8]} 23. Rd1 {[%clk 0:01:06.6]} 23... f5 {[%clk
0:00:16.7]} 24. Nb6 {[%clk 0:00:57.6]} 24... Nc7 {[%clk 0:00:12]} 25. d5 {[%clk
0:00:52.5]} 25... Bc3 {[%clk 0:00:12.9]} 26. Rb3 {[%clk 0:00:48.3]} 26... Ba4
{[%clk 0:00:13.9]} 27. Nxa4 {[%clk 0:00:48.7]} 27... Qxa4 {[%clk 0:00:14.3]} 28.
Rxc3 {[%clk 0:00:49.7]} 1-0

[Event "*** Titled Tuesday 3|2 Blitz"]
[Site "Chess.com"]
[Date "2015.12.01"]
[Round "7"]
[White "Gabrielian_Artur"]
[Black "petrpalachev"]
[Result "0-1"]
[WhiteElo "2471"]
[BlackElo "2336"]
[TimeControl "180+2"]
[EndTime "12:29:14 PST"]
[Termination "petrpalachev won by resignation"]

1. e4 {[%clk 0:03:00.5]} 1... c6 {[%clk 0:03:01.5]} 2. d3 {[%clk 0:03:01.6]}
2... d5 {[%clk 0:03:03.4]} 3. Nd2 {[%clk 0:03:02.8]} 3... e5 {[%clk 0:03:03.4]}
4. Ngf3 {[%clk 0:03:03.9]} 4... Bd6 {[%clk 0:03:05.1]} 5. d4 {[%clk 0:03:05]}
5... exd4 {[%clk 0:03:03.3]} 6. Bd3 {[%clk 0:03:06]} 6... dxe4 {[%clk 0:02:57]}
7. Nxe4 {[%clk 0:03:05.7]} 7... Be7 {[%clk 0:02:56.8]} 8. O-O {[%clk 0:03:05]}
8... Nf6 {[%clk 0:02:50.2]} 9. Nxf6+ {[%clk 0:03:05.7]} 9... Bxf6 {[%clk
0:02:52.1]} 10. Re1+ {[%clk 0:03:06.7]} 10... Be6 {[%clk 0:02:51.9]} 11. Qe2
{[%clk 0:02:57.7]} 11... O-O {[%clk 0:02:39.5]} 12. Qe4 {[%clk 0:02:58.2]} 12...
g6 {[%clk 0:02:39.9]} 13. Bh6 {[%clk 0:02:59]} 13... Re8 {[%clk 0:02:36.6]} 14.
Qf4 {[%clk 0:02:59.9]} 14... Nd7 {[%clk 0:02:29.8]} 15. Nxd4 {[%clk 0:03:00]}
15... Nc5 {[%clk 0:02:07.1]} 16. Nxe6 {[%clk 0:02:57.4]} 16... Nxe6 {[%clk
0:02:07.9]} 17. Qb4 {[%clk 0:02:52]} 17... Qb6 {[%clk 0:02:04.9]} 18. Qxb6
{[%clk 0:02:50.3]} 18... axb6 {[%clk 0:02:06.8]} 19. c3 {[%clk 0:02:49.4]} 19...
Bg5 {[%clk 0:02:02.3]} 20. Bxg5 {[%clk 0:02:48.8]} 20... Nxg5 {[%clk 0:02:04.2]}
21. f4 {[%clk 0:02:42.5]} 21... Ne6 {[%clk 0:02:03.1]} 22. g3 {[%clk 0:02:40.3]}
22... Nc5 {[%clk 0:01:43.2]} 23. Rxe8+ {[%clk 0:02:29.6]} 23... Rxe8 {[%clk
0:01:43.7]} 24. Bf1 {[%clk 0:02:30.3]} 24... Rd8 {[%clk 0:01:43.7]} 25. a4
{[%clk 0:02:13.5]} 25... Ra8 {[%clk 0:01:31.3]} 26. b4 {[%clk 0:02:11.1]} 26...
Rxa4 {[%clk 0:01:22.9]} 27. Rd1 {[%clk 0:02:04.6]} 27... Ne4 {[%clk 0:01:17.9]}
28. Rd7 {[%clk 0:01:59.3]} 28... Nxc3 {[%clk 0:01:17.1]} 29. Bc4 {[%clk
0:01:59.5]} 29... Nd5 {[%clk 0:00:56.9]} 30. Bxd5 {[%clk 0:01:55.6]} 30... cxd5
{[%clk 0:00:58.8]} 31. Rxd5 {[%clk 0:01:56.7]} 31... Rxb4 {[%clk 0:00:59.9]} 32.
Rd7 {[%clk 0:01:55.9]} 32... h5 {[%clk 0:00:58.5]} 33. Kf2 {[%clk 0:01:55.3]}
33... Rb2+ {[%clk 0:00:59.6]} 34. Kf3 {[%clk 0:01:53.6]} 34... Rxh2 {[%clk
0:00:59.9]} 35. Rxb7 {[%clk 0:01:54.8]} 35... Rb2 {[%clk 0:01:00.8]} 36. Ke4
{[%clk 0:01:53.6]} 36... Rb3 {[%clk 0:00:59.2]} 37. Ke5 {[%clk 0:01:47.4]} 37...
Kg7 {[%clk 0:00:58.2]} 38. f5 {[%clk 0:01:45.9]} 38... Rb5+ {[%clk 0:00:58.2]}
39. Ke4 {[%clk 0:01:44.2]} 39... Rxf5 {[%clk 0:00:59.1]} 40. Rxb6 {[%clk
0:01:45]} 40... Rg5 {[%clk 0:00:53.3]} 41. Kf4 {[%clk 0:01:45.6]} 41... Rg4+
{[%clk 0:00:54.8]} 42. Kf3 {[%clk 0:01:46.8]} 42... Ra4 {[%clk 0:00:54.4]} 43.
Rb8 {[%clk 0:01:46.8]} 43... g5 {[%clk 0:00:53.7]} 44. Rb6 {[%clk 0:01:47.2]}
44... f6 {[%clk 0:00:54.1]} 45. Rb8 {[%clk 0:01:48.4]} 45... Kg6 {[%clk
0:00:53.1]} 46. Rb5 {[%clk 0:01:49.2]} 46... h4 {[%clk 0:00:52.4]} 47. g4 {[%clk
0:01:48.7]} 47... Rf4+ {[%clk 0:00:53.3]} 0-1

[Event "*** Titled Tuesday 3|2 Blitz"]
[Site "Chess.com"]
[Date "2015.12.01"]
[Round "7"]
[White "Grootneus"]
[Black "silverback96"]
[Result "1-0"]
[WhiteElo "2029"]
[BlackElo "1922"]
[TimeControl "180+2"]
[EndTime "12:29:15 PST"]
[Termination "Grootneus won by resignation"]

1. e4 {[%clk 0:03:00.3]} 1... e6 {[%clk 0:02:59.8]} 2. d4 {[%clk 0:02:59.6]}
2... d5 {[%clk 0:03:01.3]} 3. Nc3 {[%clk 0:03:00.2]} 3... Bb4 {[%clk 0:03:00.6]}
4. Ne2 {[%clk 0:02:59.8]} 4... dxe4 {[%clk 0:02:59.8]} 5. a3 {[%clk 0:03:00.6]}
5... Bxc3+ {[%clk 0:02:59.9]} 6. Nxc3 {[%clk 0:03:02.5]} 6... Nf6 {[%clk
0:03:01.6]} 7. Bg5 {[%clk 0:03:04]} 7... h6 {[%clk 0:02:44.9]} 8. Bxf6 {[%clk
0:03:00.1]} 8... Qxf6 {[%clk 0:02:46.8]} 9. Nxe4 {[%clk 0:03:00.4]} 9... Qg6
{[%clk 0:02:48.4]} 10. Bd3 {[%clk 0:02:52.1]} 10... Qxg2 {[%clk 0:02:26.4]} 11.
Ng3 {[%clk 0:02:52.4]} 11... Qc6 {[%clk 0:02:27.3]} 12. Qg4 {[%clk 0:02:46.6]}
12... g5 {[%clk 0:01:44.1]} 13. h4 {[%clk 0:02:18.6]} 13... Rg8 {[%clk
0:01:39.9]} 14. O-O-O {[%clk 0:02:15.7]} 14... Bd7 {[%clk 0:01:11.2]} 15. Ne4
{[%clk 0:02:07.2]} 15... f5 {[%clk 0:00:54.8]} 16. Qh5+ {[%clk 0:02:06.6]} 16...
Kd8 {[%clk 0:00:55.4]} 17. Nf6 {[%clk 0:02:03.8]} 17... Rf8 {[%clk 0:00:48.7]}
18. Qxh6 {[%clk 0:02:03.5]} 18... Ke7 {[%clk 0:00:20.8]} 19. hxg5 {[%clk
0:01:49.7]} 19... Na6 {[%clk 0:00:22]} 20. d5 {[%clk 0:01:49.7]} 20... Qd6
{[%clk 0:00:19.5]} 21. dxe6 {[%clk 0:01:49.6]} 21... Bxe6 {[%clk 0:00:20.2]} 22.
Rhe1 {[%clk 0:01:43.9]} 22... Nc5 {[%clk 0:00:15]} 23. Kb1 {[%clk 0:01:02.7]}
23... Rf7 {[%clk 0:00:14.8]} 24. Bxf5 {[%clk 0:00:59.7]} 24... Qf4 {[%clk
0:00:11.6]} 25. Nd5+ {[%clk 0:00:56.8]} 1-0

[Event "*** Titled Tuesday 3|2 Blitz"]
[Site "Chess.com"]
[Date "2015.12.01"]
[Round "7"]
[White "Iball95"]
[Black "gumersindo"]
[Result "1-0"]
[WhiteElo "2425"]
[BlackElo "2202"]
[TimeControl "180+2"]
[EndTime "12:29:17 PST"]
[Termination "Iball95 won by resignation"]

1. e4 {[%clk 0:03:00.6]} 1... e5 {[%clk 0:02:58.3]} 2. Nf3 {[%clk 0:03:01.8]}
2... Nc6 {[%clk 0:02:59.2]} 3. Nc3 {[%clk 0:03:02.3]} 3... Nf6 {[%clk
0:02:59.5]} 4. d4 {[%clk 0:03:03.5]} 4... exd4 {[%clk 0:02:58.7]} 5. Nxd4 {[%clk
0:03:05.4]} 5... Bb4 {[%clk 0:02:58.9]} 6. Nxc6 {[%clk 0:03:05.9]} 6... bxc6
{[%clk 0:03:00.4]} 7. Bd3 {[%clk 0:03:07.4]} 7... d5 {[%clk 0:03:01.2]} 8. exd5
{[%clk 0:03:08]} 8... cxd5 {[%clk 0:03:02.7]} 9. O-O {[%clk 0:03:08.1]} 9... O-O
{[%clk 0:03:03.7]} 10. h3 {[%clk 0:03:05.2]} 10... h6 {[%clk 0:03:00.6]} 11. Qf3
{[%clk 0:03:06.1]} 11... c6 {[%clk 0:03:01]} 12. Bf4 {[%clk 0:03:04.3]} 12...
Bd6 {[%clk 0:02:59.6]} 13. b3 {[%clk 0:03:01]} 13... Re8 {[%clk 0:02:55.6]} 14.
Rfe1 {[%clk 0:02:59.9]} 14... Bxf4 {[%clk 0:02:39.1]} 15. Qxf4 {[%clk
0:03:00.4]} 15... Be6 {[%clk 0:02:32.3]} 16. Na4 {[%clk 0:02:58.6]} 16... Qa5
{[%clk 0:02:29]} 17. Qd4 {[%clk 0:02:59.1]} 17... Bd7 {[%clk 0:02:22.2]} 18. c3
{[%clk 0:02:52.4]} 18... Rxe1+ {[%clk 0:02:16.3]} 19. Rxe1 {[%clk 0:02:54.3]}
19... Re8 {[%clk 0:02:11.4]} 20. Rxe8+ {[%clk 0:02:47.5]} 20... Bxe8 {[%clk
0:02:13.3]} 21. a3 {[%clk 0:02:34.3]} 21... Bd7 {[%clk 0:02:11.6]} 22. Qc5
{[%clk 0:02:27.3]} 22... Qc7 {[%clk 0:02:04.5]} 23. Qe3 {[%clk 0:02:21.6]} 23...
Qa5 {[%clk 0:02:01.9]} 24. Qc5 {[%clk 0:02:19.3]} 24... Qc7 {[%clk 0:01:59.3]}
25. b4 {[%clk 0:02:19.9]} 25... Qb8 {[%clk 0:01:49.3]} 26. Qe3 {[%clk
0:02:16.3]} 26... Be6 {[%clk 0:01:38.5]} 27. Nc5 {[%clk 0:02:13.3]} 27... Bd7
{[%clk 0:01:35.7]} 28. a4 {[%clk 0:02:09.3]} 28... Qd6 {[%clk 0:01:31.9]} 29. a5
{[%clk 0:02:09]} 29... Be8 {[%clk 0:01:26.6]} 30. Nb7 {[%clk 0:02:04]} 30... Qb8
{[%clk 0:01:24.8]} 31. Nc5 {[%clk 0:02:02]} 31... Qd6 {[%clk 0:01:24.1]} 32. a6
{[%clk 0:02:00.5]} 32... Kf8 {[%clk 0:01:23.1]} 33. Nb3 {[%clk 0:01:54.8]} 33...
Qc7 {[%clk 0:01:21.6]} 34. Na5 {[%clk 0:01:51.9]} 34... Bd7 {[%clk 0:01:14.6]}
35. Qc5+ {[%clk 0:01:50.9]} 35... Kg8 {[%clk 0:01:10.9]} 36. Nb3 {[%clk
0:01:51.5]} 36... Qb8 {[%clk 0:01:09.4]} 37. Nd4 {[%clk 0:01:47.9]} 37... Qe8
{[%clk 0:00:55.2]} 38. Qxa7 {[%clk 0:01:44.1]} 38... Qe1+ {[%clk 0:00:53.3]} 39.
Bf1 {[%clk 0:01:44.9]} 39... Qxc3 {[%clk 0:00:53.4]} 40. Qc5 {[%clk 0:01:41.5]}
40... Qa1 {[%clk 0:00:46.8]} 41. Nxc6 {[%clk 0:01:35.1]} 41... Ne4 {[%clk
0:00:40.3]} 42. Qxd5 {[%clk 0:01:33.1]} 42... Bxc6 {[%clk 0:00:37.1]} 43. Qxc6
{[%clk 0:01:32.7]} 43... Nd2 {[%clk 0:00:32.1]} 44. Qc8+ {[%clk 0:01:30.3]} 1-0

[Event "*** Titled Tuesday 3|2 Blitz"]
[Site "Chess.com"]
[Date "2015.12.01"]
[Round "7"]
[White "Rikikits"]
[Black "jefferyx"]
[Result "1-0"]
[WhiteElo "2591"]
[BlackElo "2564"]
[TimeControl "180+2"]
[EndTime "12:29:40 PST"]
[Termination "Rikikits won by resignation"]

1. e4 {[%clk 0:03:01.9]} 1... a6 {[%clk 0:03:00.2]} 2. d4 {[%clk 0:03:01.3]}
2... b5 {[%clk 0:03:01.7]} 3. Bd3 {[%clk 0:03:02.6]} 3... Bb7 {[%clk 0:03:03.2]}
4. Ne2 {[%clk 0:03:02.6]} 4... e6 {[%clk 0:03:02.3]} 5. O-O {[%clk 0:03:03.5]}
5... c5 {[%clk 0:03:03.1]} 6. c3 {[%clk 0:03:02.1]} 6... Nf6 {[%clk 0:03:04.5]}
7. e5 {[%clk 0:02:54.4]} 7... Nd5 {[%clk 0:03:04.7]} 8. Nd2 {[%clk 0:02:52.4]}
8... d6 {[%clk 0:03:03.2]} 9. Nf3 {[%clk 0:02:46.8]} 9... Nd7 {[%clk 0:03:02.2]}
10. exd6 {[%clk 0:02:39.3]} 10... Bxd6 {[%clk 0:03:03]} 11. Ng3 {[%clk
0:02:40.7]} 11... cxd4 {[%clk 0:02:51.3]} 12. Nxd4 {[%clk 0:02:39.6]} 12... Nc5
{[%clk 0:02:51.4]} 13. Bc2 {[%clk 0:02:39.1]} 13... h5 {[%clk 0:02:34.9]} 14.
Re1 {[%clk 0:02:37.5]} 14... Kf8 {[%clk 0:02:31.9]} 15. Ne4 {[%clk 0:02:15.6]}
15... Nxe4 {[%clk 0:02:32.5]} 16. Bxe4 {[%clk 0:02:17.5]} 16... Qc7 {[%clk
0:02:31.9]} 17. Qf3 {[%clk 0:02:13.7]} 17... Bxh2+ {[%clk 0:02:24]} 18. Kh1
{[%clk 0:02:14.3]} 18... Kg8 {[%clk 0:02:25.6]} 19. Qh3 {[%clk 0:01:48.2]} 19...
Bd6 {[%clk 0:01:54.7]} 20. Nxe6 {[%clk 0:01:46]} 20... Qe7 {[%clk 0:01:56.3]}
21. Nd4 {[%clk 0:01:08.3]} 21... g6 {[%clk 0:00:53.6]} 22. Bd2 {[%clk
0:01:05.9]} 22... Qf6 {[%clk 0:00:54.9]} 23. Qf3 {[%clk 0:00:58.4]} 23... Qh4+
{[%clk 0:00:55.8]} 24. Qh3 {[%clk 0:00:56.7]} 24... Qf6 {[%clk 0:00:57.5]} 25.
Nf3 {[%clk 0:00:44.2]} 25... h4 {[%clk 0:00:29.6]} 26. Bg5 {[%clk 0:00:42.7]}
26... Qg7 {[%clk 0:00:28.9]} 27. Qd7 {[%clk 0:00:43.3]} 27... h3 {[%clk
0:00:25.4]} 28. g3 {[%clk 0:00:44.2]} 28... f5 {[%clk 0:00:26]} 29. Bxd5+ {[%clk
0:00:36.3]} 29... Bxd5 {[%clk 0:00:26.4]} 30. Qxd6 {[%clk 0:00:38.2]} 30... Qf7
{[%clk 0:00:05.3]} 31. Kh2 {[%clk 0:00:34.7]} 1-0